Workbook

Sheet Tabelle1
A1: Stromverbrauch mit Batteriespeicher und PV-Anlage
A2: eingegeben von E. Waffenschmidt, 18.1.2017
A3: gemessen von Mitglied SFV aus Usingen, Daten als Papierversion, siehe Tagebuch 2017
A4: Zeitraum Okt 2013 bis Sep 2014, Einheiten nicht explizit angegeben, aber sehr wahrscheinlich kWh
A6: Randbedingungen
A7: Standort: Usingen, Blei-Gel 12kWh / 6 kWh nutzbar, SMA-technik
A8: Batterie: Blei-Gel 12kWh / 6 kWh nutzbar, SMA-technik
A9: PV-System: 2 PV-Anlagen, zusammen 6.8kWp - SO-Exposition, 36° Dachneigung, 3. PV-Anlage mit 2.7kWp speist nur direkt ein
A10: Stromverbrauch: übliche Haushaltsgeräte, Wärmepumpe, z.T. Infrarot-Heizung, Elektromobil, seit Juni 2014 ein 2. Elektromobil
A11: Wärmeerzeugung zusätzlich: 20m² Solarthermie-Anlage (Röhrenkollektoren), ca. 3000kWh Scheitholz, ca. 200kWh Flüssiggas
A13: Zeitraum | B13: Verbrauch gesamt | C13: Verbrauch aus Netzbezug | D13: Verbrauch aus Eigenversorgung | E13: Eigenvers. PV direkt | F13: Eigenvers. Batterie | G13: PV-Ertrag gesamt | H13: PV Netz-einspeisung | I13: PV Eigenverbrauch | J13: PV-Batterieladung | L13: Autarkie-quote | M13: Speicher-Verlust | N13: Speicher-Effizienz | O13: Eigen-verbrauchs-quote | P13: Autarkie-quote direkt | Q13: Autonomie
A14: 2013-10-01 | B14: 377 | C14: 122 | D14: 255 | E14: 127 | F14: 128 | G14: 408 | H14: 107 | I14: 301 | J14: 174 | L14: =D14/B14 -> 0.6763925729 | M14: =1-N14 -> 0.2643678161 | N14: =F14/J14 -> 0.7356321839 | O14: =MIN(1,B14/G14) -> 0.9240196078 | P14: =E14/B14 -> 0.3368700265 | Q14: =G14/B14 -> 1.082228117
A15: 2013-11-01 | B15: 469 | C15: 327 | D15: 142 | E15: 73 | F15: 69 | G15: 201 | H15: 28 | I15: 173 | J15: 100 | L15: =D15/B15 -> 0.302771855 | M15: =1-N15 -> 0.31 | N15: =F15/J15 -> 0.69 | O15: =MIN(1,B15/G15) -> 1 | P15: =E15/B15 -> 0.1556503198 | Q15: =G15/B15 -> 0.4285714286
A16: 2013-12-01 | B16: 647 | C16: 524 | D16: 123 | E16: 64 | F16: 59 | G16: 160 | H16: 5 | I16: 155 | J16: 91 | L16: 0.1901081917 | M16: 0.3516483516 | N16: 0.6483516484 | O16: 1 | P16: 0.09891808346 | Q16: 0.2472952087
A17: 2014-01-01 | B17: 549 | C17: 414 | D17: 135 | E17: 97 | F17: 68 | G17: 184 | H17: 15 | I17: 169 | J17: 102 | L17: 0.2459016393 | M17: 0.3333333333 | N17: 0.6666666667 | O17: 1 | P17: 0.1766848816 | Q17: 0.335154827
A18: 2014-02-01 | B18: 445 | C18: 207 | D18: 238 | E18: 132 | F18: 106 | G18: 326 | H18: 49 | I18: 277 | J18: 145 | L18: 0.5348314607 | M18: 0.2689655172 | N18: 0.7310344828 | O18: 1 | P18: 0.2966292135 | Q18: 0.7325842697
A19: 2014-03-01 | B19: 438 | C19: 80 | D19: 358 | E19: 211 | F19: 147 | G19: 711 | H19: 295 | I19: 415 | J19: 204 | L19: 0.8173515982 | M19: 0.2794117647 | N19: 0.7205882353 | O19: 0.6160337553 | P19: 0.4817351598 | Q19: 1.623287671
A20: 2014-04-01 | B20: 333 | C20: 16 | D20: 317 | E20: 194 | F20: 123 | G20: 788 | H20: 427 | I20: 342 | J20: 168 | L20: 0.951951952 | M20: 0.2678571429 | N20: 0.7321428571 | O20: 0.4225888325 | P20: 0.5825825826 | Q20: 2.366366366
A21: 2014-05-01 | B21: 357 | C21: 9 | D21: 348 | E21: 230 | F21: 118 | G21: 886 | H21: 495 | I21: 391 | J21: 161 | L21: 0.974789916 | M21: 0.2670807453 | N21: 0.7329192547 | O21: 0.4029345372 | P21: 0.6442577031 | Q21: 2.481792717
A22: 2014-06-01 | B22: 331 | C22: 8 | D22: 323 | E22: 224 | F22: 99 | G22: 1016 | H22: 655 | I22: 361 | J22: 137 | L22: 0.9758308157 | M22: 0.2773722628 | N22: 0.7226277372 | O22: 0.3257874016 | P22: 0.6767371601 | Q22: 3.069486405
A23: 2014-07-01 | B23: 379 | C23: 11 | D23: 368 | E23: 256 | F23: 112 | G23: 946 | H23: 538 | I23: 410 | J23: 154 | L23: 0.9709762533 | M23: 0.2727272727 | N23: 0.7272727273 | O23: 0.4006342495 | P23: 0.6754617414 | Q23: 2.496042216
A24: 2014-08-01 | B24: 345 | C24: 7 | D24: 338 | E24: 232 | F24: 106 | G24: 845 | H24: 468 | I24: 377 | J24: 145 | L24: 0.9797101449 | M24: 0.2689655172 | N24: 0.7310344828 | O24: 0.4082840237 | P24: 0.6724637681 | Q24: 2.449275362
A25: 2014-09-01 | B25: 364 | C25: 43 | D25: 321 | E25: 198 | F25: 123 | G25: 532 | H25: 170 | I25: 361 | J25: 163 | L25: 0.8818681319 | M25: 0.245398773 | N25: 0.754601227 | O25: 0.6842105263 | P25: 0.543956044 | Q25: 1.461538462
A26: Summe ganzes Jahr | B26: =SUM(B14:B25) -> 5034 | C26: =SUM(C14:C25) -> 1768 | D26: 3266 | E26: 2038 | F26: 1258 | G26: 7003 | H26: 3252 | I26: 3732 | J26: 1744 | L26: =D26/B26 -> 0.64878824 | M26: 0.2786697248 | N26: =F26/J26 -> 0.7213302752 | O26: =MIN(1,B26/G26) -> 0.7188347851 | P26: 0.4048470401 | Q26: 1.391140246
